bitfinex/quotes_ETHUSD_20250523
["timestamp","ask_amount","ask_price","bid_price","bid_amount"]
[1748024946675,3.89954765,2564.4,2563.8,24.836]
[1748024946847,3.900156,2564.0,2563.9,8.0]
[1748024947053,3.900156,2564.0,2563.9,36.7317]
[1748024947210,3.89909151,2564.7,2564.0,0.8207]
[1748024947407,3.89979616,2564.3,2564.0,0.8207]
[1748024947751,3.89969972,2564.3,2564.0,0.8207]
[1748024948451,3.89986632,2564.2,2564.0,0.8207]
[1748024948750,3.89960906,2564.4,2564.0,0.85969652]
[1748024949250,10.19,2565.0,2564.1,1.20484693]
[1748024949549,3.89931142,2564.6,2564.3,0.8321]
[1748024949725,3.89931142,2564.6,2564.5,8.0]
[1748024951639,3.89924354,2564.6,2564.5,8.0]
[1748024951865,3.89924354,2564.6,2564.5,8.7906]
[1748024952035,3.89897326,2564.8,2564.5,8.7906]
[1748024952236,3.89849996,2565.1,2564.5,8.7906]
[1748024952561,3.89924354,2564.6,2564.5,8.7906]
[1748024955477,0.05,2565.9,2564.6,0.7803]
[1748024955776,0.05,2565.9,2564.4,27.907]
[1748024955777,0.05,2565.9,2565.4,0.7803]
[1748024955932,3.89771782,2565.7,2565.5,44.732]
[1748024956128,3.89771782,2565.7,2565.6,35.902]
[1748024956769,3.89771782,2565.7,2565.6,35.901]
[1748024958277,3.89771782,2565.7,2565.6,8.0]
[1748024958634,3.89771782,2565.7,2565.6,24.189]
[1748024959190,3.89772372,2565.6,2565.5,16.83]
[1748024959770,3.89772372,2565.6,2565.5,33.016]
[1748024965236,3.89772372,2565.6,2565.5,16.83]
[1748024965475,4.65582372,2565.6,2565.5,33.014]
[1748024965680,5.97937124,2565.6,2565.5,33.014]
[1748024969685,5.97937124,2565.6,2565.5,16.83]
[1748024974887,16.16937124,2565.6,2565.5,16.83]
[1748024975391,12.27164752,2565.6,2564.7,25.6122]
[1748024975590,12.27164752,2565.6,2564.7,29.2962]
[1748024975591,3.89893948,2564.8,2564.7,29.2962]
[1748024975899,3.89893948,2564.8,2564.7,16.825]
[1748024976096,3.89893948,2564.8,2564.7,33.009]
[1748024978292,3.89893948,2564.8,2564.7,33.01]
[1748024982013,3.89893948,2564.8,2564.7,33.011]
[1748024982222,4.67871553,2564.8,2564.7,33.011]
[1748024983645,3.89893948,2564.8,2564.7,44.696]
[1748024983822,3.89893948,2564.8,2564.7,53.5147]
[1748024989924,3.89893948,2564.8,2564.7,41.8297]
[1748024990124,3.89893948,2564.8,2564.7,53.5147]
[1748024991656,3.89893948,2564.8,2564.7,16.825]
[1748024991854,4.67871553,2564.8,2564.7,16.825]
[1748024992060,4.67871553,2564.8,2564.7,32.993]
[1748024992228,3.89893948,2564.8,2564.7,32.993]
[1748024994866,3.89893948,2564.8,2564.7,16.825]
[1748024995162,3.89893948,2564.8,2564.7,32.993]
[1748024995464,3.89893948,2564.8,2564.7,16.825]
[1748024995627,3.89893948,2564.8,2564.7,32.993]
[1748024998067,3.89893948,2564.8,2564.7,41.7999]
[1748025000066,3.89887681,2564.9,2564.8,0.7509]
[1748025000773,3.89893948,2564.8,2564.7,28.88297023]
[1748025000945,4.67870404,2564.8,2564.7,33.36597023]
[1748025001147,3.89893948,2564.8,2564.7,33.36597023]
[1748025001775,3.89893948,2564.8,2564.7,32.993]
[1748025004296,3.89893948,2564.8,2564.7,40.993]
[1748025007473,3.89893948,2564.8,2564.7,44.678]
[1748025009295,3.89893948,2564.8,2564.7,52.678]
[1748025011897,3.89893948,2564.8,2564.7,40.993]
[1748025012112,3.89893948,2564.8,2564.7,52.678]
[1748025012474,3.89893948,2564.8,2564.7,53.4917]
[1748025012914,3.89893948,2564.8,2564.7,53.8649541]
[1748025013217,3.89893948,2564.8,2564.7,26.0119541]
[1748025013373,3.89893948,2564.8,2564.7,53.0512541]
[1748025014074,3.8977131,2565.7,2564.7,53.0512541]
[1748025014075,3.89772496,2565.6,2564.8,8.7997]
[1748025014414,3.89757181,2565.7,2564.9,1.41713761]
[1748025014716,3.89857459,2565.1,2565.0,19.685]
[1748025015693,3.89857459,2565.1,2565.0,8.3732541]
[1748025015897,3.89857459,2565.1,2565.0,20.0582541]
[1748025016514,3.89839799,2565.2,2565.0,12.0582541]
[1748025016820,3.89827939,2565.3,2565.1,0.7678]
[1748025016992,3.89827939,2565.3,2565.2,16.167]
[1748025017324,3.89827939,2565.3,2565.2,24.167]
[1748025017624,3.89827939,2565.3,2565.2,24.5402541]
[1748025018617,3.89796851,2565.5,2565.2,24.5402541]
[1748025018819,0.05,2565.9,2565.4,0.7618]
[1748025018987,3.94732464,2565.9,2565.6,8.0]
[1748025019187,3.8974199,2565.8,2565.7,41.7208]
[1748025019388,3.8974199,2565.8,2565.7,25.5858]
[1748025019619,3.8974199,2565.8,2565.7,52.642]
[1748025023808,3.94734643,2565.9,2565.7,52.642]
[1748025024519,3.8974199,2565.8,2565.7,52.642]
[1748025024726,3.94733952,2565.9,2565.8,0.7879]
[1748025024930,0.05,2565.9,2565.8,9.3379]
[1748025025229,0.05,2565.9,2565.8,8.7879]
[1748025025786,0.05,2565.9,2565.8,8.98363035]
[1748025026025,3.94726801,2565.9,2565.8,36.6009]
[1748025026919,0.05,2565.9,2565.8,36.6009]
[1748025027123,3.94726801,2565.9,2565.8,36.6009]
[1748025027888,0.05,2565.9,2565.8,36.6009]
[1748025028101,0.05,2565.9,2565.8,41.16335751]
[1748025028326,0.05,2565.9,2565.8,41.71335751]
[1748025028519,0.05,2565.9,2565.8,37.81593761]
[1748025029227,3.8968841,2566.2,2565.8,38.01190249]
[1748025029733,3.89606572,2566.7,2566.0,8.0]
[1748025030025,3.89687554,2566.2,2565.9,8.0]
[1748025030424,0.808,2566.9,2566.1,0.8208]
[1748025030791,3.89681102,2566.3,2566.1,0.8208]
[1748025031113,3.8968124,2566.2,2566.1,0.8208]
[1748025031314,3.8974199,2565.8,2565.7,17.6448]
[1748025031625,3.8974199,2565.8,2565.7,32.954]
[1748025039123,3.8974199,2565.8,2565.7,52.954]
[1748025040934,4.75375172,2565.8,2565.7,36.824]
[1748025041138,4.75375172,2565.8,2565.7,52.955]
[1748025041950,3.8974199,2565.8,2565.7,52.955]
[1748025044428,3.8974199,2565.8,2565.7,36.824]
[1748025044627,4.6745199,2565.8,2565.7,52.956]
[1748025048033,4.6745199,2565.8,2565.7,36.824]
[1748025048232,5.53170172,2565.8,2565.7,52.956]
[1748025048731,15.72170172,2565.8,2565.7,52.956]
[1748025049831,15.72170172,2565.8,2565.7,36.824]
[1748025050034,15.72170172,2565.8,2565.7,52.92]
[1748025052211,15.72170172,2565.8,2565.7,20.0]
[1748025052408,28.42903975,2565.8,2565.7,18.35852168]
[1748025052611,32.52703975,2565.8,2565.7,18.35852168]
[1748025052915,26.60870172,2565.8,2565.7,18.35852168]
[1748025053139,27.40370172,2565.8,2565.7,18.35852168]
[1748025056426,14.8645199,2565.8,2565.7,18.35852168]
[1748025056628,26.5465199,2565.8,2565.7,18.35852168]
[1748025057151,14.8645199,2565.8,2565.7,18.35852168]
[1748025061160,22.8645199,2565.8,2565.7,18.35852168]
[1748025062187,34.5465199,2565.8,2565.7,18.35852168]
[1748025062682,22.8645199,2565.8,2565.7,18.35852168]
[1748025062881,22.0874199,2565.8,2565.7,18.35852168]
[1748025063402,18.54487917,2565.8,2565.7,34.45552168]
[1748025063962,30.22687917,2565.8,2565.7,34.45552168]
[1748025069076,30.22687917,2565.8,2565.7,18.35852168]
[1748025070063,34.9342172,2565.8,2565.7,18.35852168]
[1748025070269,42.9342172,2565.8,2565.7,18.35852168]
[1748025070464,47.0322172,2565.8,2565.7,18.35852168]
[1748025071458,47.0332172,2565.8,2565.7,18.35852168]
[1748025073468,42.9352172,2565.8,2565.7,18.35852168]
[1748025073768,47.0332172,2565.8,2565.7,18.35852168]
[1748025074587,3.89924354,2564.6,2564.5,16.099]
[1748025074789,15.58324354,2564.6,2564.5,16.099]
[1748025075564,3.89924354,2564.6,2564.5,16.099]
[1748025075795,3.89924354,2564.6,2564.5,18.5146]
[1748025076087,3.89924354,2564.6,2564.5,26.5146]
[1748025076297,3.89924354,2564.6,2564.5,38.1986]
[1748025077884,3.89922329,2564.7,2564.6,8.7543]
[1748025078216,3.89922329,2564.7,2564.6,12.56902]
[1748025079576,3.89903439,2564.8,2564.7,0.7691]
[1748025079781,21.875,2565.7,2564.7,0.7691]
[1748025079979,3.89892198,2564.9,2564.8,12.4541]
[1748025080197,3.89892198,2564.9,2564.8,29.2801]
[1748025080406,3.89869396,2565.0,2564.9,8.7691]
[1748025080587,3.89869396,2565.0,2564.9,24.8271]
[1748025080760,3.89869396,2565.0,2564.9,26.437]
[1748025081374,3.89869396,2565.0,2564.9,24.8271]
[1748025081581,3.89869396,2565.0,2564.9,16.8261]
[1748025081808,3.89869396,2565.0,2564.9,16.057]
[1748025082392,3.89878747,2564.9,2564.8,16.826]
[1748025082600,3.89878747,2564.9,2564.8,32.883]
[1748025084823,3.89878747,2564.9,2564.8,36.83299309]
[1748025085825,3.89878747,2564.9,2564.8,44.83299309]
[1748025087891,4.683683,2565.9,2565.0,0.7729]
[1748025088225,3.89830724,2565.3,2565.2,8.7729]
[1748025088389,3.89830724,2565.3,2565.2,26.87948812]
[1748025089529,3.89830724,2565.3,2565.2,8.7729]
[1748025089733,3.89830724,2565.3,2565.2,36.5139]
[1748025090255,3.89830724,2565.3,2565.2,8.0]
[1748025090610,3.89830724,2565.3,2565.2,24.056]
[1748025091205,3.89830724,2565.3,2565.2,16.056]
[1748025091447,3.89863547,2565.0,2564.8,21.53469309]
[1748025091750,3.89863547,2565.0,2564.9,16.056]
[1748025092956,3.89878747,2564.9,2564.8,17.5847]
[1748025093138,3.89878747,2564.9,2564.8,41.6407]
[1748025094411,3.89878747,2564.9,2564.8,45.59069309]
[1748025094624,3.8986383,2565.0,2564.9,8.0]
[1748025097263,3.8986383,2565.0,2564.9,8.3725807]
[1748025097454,3.89856347,2565.1,2564.9,9.1754807]
[1748025097650,3.89856347,2565.1,2564.9,8.8029]
[1748025097850,3.89856347,2565.1,2565.0,3.94999309]
[1748025098369,3.84856347,2565.1,2565.0,3.94999309]
[1748025099854,14.86556855,2565.8,2565.1,0.7818]
[1748025099855,0.778,2565.8,2565.1,0.7818]
[1748025100187,3.89833151,2565.2,2565.1,0.7818]
[1748025100376,3.89833151,2565.2,2565.1,20.4658]
[1748025103149,3.89833151,2565.2,2565.1,8.7818]
[1748025103349,3.89833151,2565.2,2565.1,20.4648]
[1748025103774,3.89833151,2565.2,2565.1,19.683]
[1748025103979,3.89833151,2565.2,2565.1,8.0]
[1748025104177,3.89833151,2565.2,2565.1,16.055]
[1748025104354,3.89833151,2565.2,2565.1,27.738]
[1748025104561,4.6779859,2565.2,2565.1,16.055]
[1748025104760,3.89878747,2564.9,2564.8,16.826]
[1748025104962,3.89878747,2564.9,2564.8,52.564]
[1748025106085,3.89878747,2564.9,2564.8,40.881]
[1748025108091,3.89878747,2564.9,2564.8,44.83099309]
[1748025109867,3.89878747,2564.9,2564.8,45.99374937]
[1748025111707,3.89863547,2565.0,2564.9,8.0]
[1748025111881,3.89854372,2565.1,2564.9,8.0]
[1748025112085,3.89821011,2565.3,2565.0,12.73349309]
[1748025112392,3.89833151,2565.2,2565.1,19.683]
[1748025112689,3.89833151,2565.2,2565.1,20.05605628]
[1748025112993,3.89833151,2565.2,2565.1,36.06505628]
[1748025113892,3.89833151,2565.2,2565.1,0.37305628]
[1748025114078,4.75722456,2565.2,2565.1,16.38205628]
[1748025114279,4.75722456,2565.2,2565.1,16.009]
[1748025114483,3.89833151,2565.2,2565.1,16.009]
[1748025115406,3.89878747,2564.9,2564.8,16.826]
[1748025115705,3.89878747,2564.9,2564.8,52.518]
[1748025116295,3.89878747,2564.9,2564.8,40.835]
[1748025116600,3.89878747,2564.9,2564.8,52.518]
[1748025116963,3.89878747,2564.9,2564.8,52.89120622]
[1748025117500,3.89878747,2564.9,2564.8,17.19920622]
[1748025117800,4.67853299,2564.9,2564.8,33.20820622]
[1748025117997,3.89878747,2564.9,2564.8,33.20820622]
[1748025118216,3.89878747,2564.9,2564.8,32.835]
[1748025118414,3.89878747,2564.9,2564.8,16.826]
[1748025118769,4.71828747,2564.9,2564.8,32.835]
[1748025119670,3.89878747,2564.9,2564.8,32.835]
[1748025123392,3.89878747,2564.9,2564.8,16.826]
[1748025123594,4.67853299,2564.9,2564.8,32.836]
[1748025124013,5.46153299,2564.9,2564.8,32.836]
[1748025125022,3.89893948,2564.8,2564.7,16.011]
[1748025125227,3.89893948,2564.8,2564.1,0.05]
[1748025125228,3.8998518,2564.2,2564.1,0.05]
[1748025125398,3.8998518,2564.2,2564.1,16.061]
[1748025125593,3.8998518,2564.2,2564.1,0.05]
[1748025125798,3.8998518,2564.2,2564.1,16.061]
[1748025128882,4.6697518,2564.2,2564.1,16.062]
[1748025129081,5.44970983,2564.2,2564.1,16.062]
[1748025129525,5.99970983,2564.2,2564.1,0.05]
[1748025129725,13.99970983,2564.2,2564.1,0.05]
[1748025129898,16.33870983,2564.2,2564.1,0.05]
[1748025130622,5.99970983,2564.2,2564.1,0.05]
[1748025130811,17.68570983,2564.2,2564.1,0.05]
[1748025132133,19.50604786,2564.2,2564.1,0.05]
[1748025132600,18.95604786,2564.2,2564.1,0.05]
[1748025132799,5.44970983,2564.2,2564.1,0.05]
[1748025133112,17.13770983,2564.2,2564.1,0.05]
[1748025136131,17.68770983,2564.2,2564.1,0.05]
[1748025137043,5.99970983,2564.2,2564.1,0.05]
[1748025137228,17.68870983,2564.2,2564.1,0.05]
[1748025137402,21.78670983,2564.2,2564.1,0.05]
[1748025137602,17.68870983,2564.2,2564.1,0.05]
[1748025139652,25.68870983,2564.2,2564.1,0.05]
[1748025140043,38.21770983,2564.2,2564.1,0.05]
[1748025140871,42.31770983,2564.2,2564.1,0.05]
[1748025141061,4.73377328,2563.2,2563.1,0.05]
[1748025141263,5.63626006,2563.2,2563.1,0.05]
[1748025141565,5.59727573,2563.2,2563.1,0.05]
[1748025142761,17.28827573,2563.2,2563.1,0.05]
[1748025145433,27.47827573,2563.2,2563.1,0.05]
[1748025146027,31.2727011,2563.2,2563.1,0.05]
[1748025146860,15.78727573,2563.2,2563.1,0.05]
[1748025147049,27.48027573,2563.2,2563.1,0.05]
[1748025147667,30.36927573,2563.2,2563.1,0.05]
[1748025148170,15.02973446,2562.7,2562.6,0.66666667]
[1748025148330,30.51715983,2562.7,2562.6,0.66666667]
[1748025148833,16.38473446,2562.7,2562.6,0.66666667]
[1748025149058,4.69073446,2562.7,2562.6,0.66666667]
[1748025149261,16.38473446,2562.7,2562.6,0.66666667]
[1748025149758,18.80359185,2562.7,2562.6,0.66666667]
[1748025151067,6.32099185,2562.7,2562.6,0.66666667]
[1748025151371,3.90213446,2562.7,2562.6,0.66666667]
[1748025156865,3.90213446,2562.7,2562.6,16.64566667]
[1748025159871,7.69655983,2562.7,2562.6,0.66666667]
[1748025160074,19.87047976,2562.7,2562.6,0.13721536]
[1748025161982,22.20947976,2562.7,2562.6,0.13721536]
[1748025162201,32.39947976,2562.7,2562.6,0.13721536]
[1748025162574,36.49947976,2562.7,2562.6,0.13721536]
[1748025162892,36.49947976,2562.7,2562.1,0.05]
[1748025162893,5.21009594,2562.2,2562.1,0.05]
[1748025163090,16.90609594,2562.2,2562.1,0.05]
[1748025163387,16.35609594,2562.2,2562.1,0.05]
[1748025164001,16.90609594,2562.2,2562.1,0.05]
[1748025165587,16.35609594,2562.2,2562.1,0.05]
[1748025165778,17.39130098,2562.2,2562.1,0.05]
[1748025167106,17.39330098,2562.2,2562.1,0.05]
[1748025168385,20.28230098,2562.2,2562.1,0.05]
[1748025168589,17.94330098,2562.2,2562.1,0.05]
[1748025168910,17.39330098,2562.2,2562.1,0.05]
[1748025169108,16.63610098,2562.2,2562.1,0.05]
[1748025170912,4.93810098,2562.2,2562.1,0.05]
[1748025171071,3.90289594,2562.2,2562.1,0.05]
[1748025171275,3.90289594,2562.2,2562.1,0.8703]
[1748025171704,3.90289594,2562.2,2562.1,16.8083]
[1748025172251,3.90289594,2562.2,2562.1,24.8083]
[1748025172578,3.90289594,2562.2,2562.1,28.45903]
[1748025174686,3.90289594,2562.2,2562.1,12.52103]
[1748025174902,3.90289594,2562.2,2562.1,36.5073]
[1748025175210,3.90289594,2562.2,2562.1,36.5073]
[1748025176215,3.9027918,2562.3,2562.2,8.8101]
[1748025176514,3.90259132,2562.4,2562.3,0.8084]
[1748025176699,3.90259132,2562.4,2562.3,12.45774]
[1748025177015,3.90259132,2562.4,2562.3,40.09274]
[1748025177522,3.90250191,2562.5,2562.4,8.8084]
[1748025177822,3.90250191,2562.5,2562.4,29.60439309]
[1748025178575,3.90250191,2562.5,2562.4,57.23839309]
[1748025179113,3.90250191,2562.5,2562.4,25.6544]
[1748025179277,3.90250191,2562.5,2562.4,16.846]
[1748025179482,3.90250191,2562.5,2562.4,32.782]
[1748025179903,4.67450191,2562.5,2562.4,32.782]
[1748025180233,3.90250191,2562.5,2562.4,32.782]
[1748025180825,4.76018431,2562.5,2562.4,32.782]
[1748025181734,3.90250191,2562.5,2562.4,32.782]
[1748025184096,3.90230825,2562.6,2562.4,41.5444]
[1748025184299,3.90230825,2562.6,2562.5,8.0]
[1748025187040,10.81778464,2563.8,2562.7,0.8075]
[1748025187241,3.90194105,2562.9,2562.8,8.03901222]
[1748025187412,3.90194105,2562.9,2562.8,35.631]
[1748025188904,3.9019822,2562.8,2562.7,0.8075]
[1748025189139,3.9019822,2562.8,2562.7,24.7415]
[1748025189342,3.90243902,2562.5,2562.4,17.6406]
[1748025189526,3.90243902,2562.5,2562.4,45.2706]
[1748025189938,3.90243902,2562.5,2562.4,53.2706]
[1748025190338,3.90243902,2562.5,2562.4,16.846]
[1748025190539,5.07312798,2562.5,2562.4,16.846]
[1748025190737,5.07312798,2562.5,2562.4,32.779]
[1748025192963,3.90243902,2562.5,2562.4,32.779]
[1748025193264,3.90243902,2562.5,2562.4,33.5538]
[1748025194864,3.90243902,2562.5,2562.4,41.5538]
[1748025198670,3.90243902,2562.5,2562.4,40.779]
[1748025199357,3.90243902,2562.5,2562.4,40.78]
[1748025199556,3.90243902,2562.5,2562.4,32.78]
[1748025199758,3.90365772,2561.7,2561.6,0.20929953]
[1748025200065,3.90396252,2561.5,2561.4,0.61847341]
[1748025200268,3.94294685,2561.5,2561.4,0.61847341]
[1748025200472,6.72012401,2561.5,2561.4,0.61847341]
[1748025200768,3.9044198,2561.2,2561.1,0.05]
[1748025200969,15.6004198,2561.2,2561.1,0.05]
[1748025201572,3.9044198,2561.2,2561.1,0.05]
[1748025205269,3.9044198,2561.2,2561.1,15.944]
[1748025206388,4.68528999,2561.2,2561.1,0.05]
[1748025206594,4.68528999,2561.2,2561.1,15.944]
[1748025209423,4.68528999,2561.2,2561.1,0.05]
[1748025209709,4.72427432,2561.2,2561.1,15.946]
[1748025209971,4.68528999,2561.2,2561.1,0.05]
[1748025210103,4.72427432,2561.2,2561.1,15.946]
[1748025210321,4.68528999,2561.2,2561.1,0.05]
[1748025210552,17.32269969,2561.2,2561.1,0.05]
[1748025210702,17.28371536,2561.2,2561.1,0.05]
[1748025211377,13.48928999,2561.2,2561.1,0.05]
[1748025211787,25.19128999,2561.2,2561.1,0.05]
[1748025212116,27.53028999,2561.2,2561.1,0.05]
[1748025212522,15.82828999,2561.2,2561.1,0.05]
[1748025212723,27.53028999,2561.2,2561.1,0.05]
[1748025213417,5.48928999,2561.2,2561.1,0.05]
[1748025213622,17.19128999,2561.2,2561.1,0.05]
[1748025214430,3.90487719,2560.9,2560.8,15.896]
[1748025215886,3.90487719,2560.9,2560.4,12.4893]
[1748025215887,3.9054872,2560.5,2560.4,20.4393]
[1748025216082,3.9054872,2560.5,2560.4,38.38223]
[1748025216317,3.9054872,2560.5,2560.4,55.23423]
[1748025217925,1.94218896,2562.5,2560.6,0.55]
[1748025218078,3.90413266,2561.4,2560.8,0.55]
[1748025218279,3.90413295,2561.4,2561.0,8.0]
[1748025218484,3.90371875,2561.7,2561.2,8.0]
[1748025218837,3.90411068,2561.5,2561.2,8.0]
[1748025218983,3.90411068,2561.5,2561.3,0.7657]
[1748025218984,3.90405164,2561.5,2561.3,0.7657]
[1748025219184,3.90405164,2561.5,2561.4,40.752]
[1748025219380,3.90405164,2561.5,2561.4,55.87442061]
[1748025219694,3.90312813,2562.1,2561.5,8.7657]
[1748025219878,3.90376143,2561.7,2561.6,0.03903063]
[1748025220282,3.90381011,2561.6,2561.5,8.7657]
[1748025220478,3.90381011,2561.6,2561.5,10.80963]
[1748025221422,3.90330053,2562.0,2561.6,0.7608]
[1748025221714,3.90213446,2562.7,2561.7,0.7608]
[1748025221915,3.90329711,2562.0,2561.7,0.7608]
[1748025223198,3.9034282,2561.9,2561.7,0.7608]
[1748025223398,3.90350534,2561.8,2561.7,0.7608]
[1748025223589,3.90350534,2561.8,2561.7,37.436273]
[1748025223790,3.90339109,2561.9,2561.8,8.0]
[1748025225133,3.90309217,2562.1,2561.8,8.0]
[1748025225436,3.90335298,2561.9,2561.8,8.0]
[1748025226933,3.90335298,2561.9,2561.7,1.841273]
[1748025227132,3.90335298,2561.9,2561.8,36.59696028]
[1748025227313,3.90335298,2561.9,2561.8,24.89796028]
[1748025227712,3.90335298,2561.9,2561.8,36.59696028]
[1748025227918,3.90335298,2561.9,2561.8,9.00396028]
[1748025228449,3.90335298,2561.9,2561.8,8.0]
[1748025228768,3.90335298,2561.9,2561.8,35.593]
[1748025229119,3.90335298,2561.9,2561.8,8.0]
[1748025229445,3.90335298,2561.9,2561.8,35.592]
[1748025229946,3.90335298,2561.9,2561.8,15.893]
[1748025230150,3.90396252,2561.5,2561.4,17.677]
[1748025230353,3.90396252,2561.5,2561.4,47.05535714]
[1748025230553,3.90396252,2561.5,2561.4,55.05535714]
[1748025230752,3.90396252,2561.5,2561.4,47.05535714]
[1748025231054,3.90396252,2561.5,2561.4,55.05535714]
[1748025231244,3.90396252,2561.5,2561.4,47.05535714]
[1748025231549,3.90396252,2561.5,2561.4,55.05535714]
[1748025232054,3.90396252,2561.5,2561.4,55.03335714]
[1748025232249,3.90396252,2561.5,2561.4,52.422]
[1748025232558,3.90396252,2561.5,2561.4,24.853]
[1748025232861,3.90396252,2561.5,2561.4,32.724]
[1748025233167,3.90396252,2561.5,2561.4,40.724]
[1748025235292,3.90396252,2561.5,2561.4,16.853]
[1748025235555,4.68474288,2561.5,2561.4,32.724]
[1748025235792,3.90396252,2561.5,2561.4,32.724]
[1748025235997,3.90396252,2561.5,2561.4,40.724]
[1748025236181,3.90396252,2561.5,2561.4,41.5023]
[1748025236702,3.90384132,2561.6,2561.5,8.0]
[1748025237000,3.90384132,2561.6,2561.5,19.699]
[1748025237295,3.90384132,2561.6,2561.5,23.64899309]
[1748025237951,3.90384132,2561.6,2561.5,8.0]
[1748025238172,3.90384132,2561.6,2561.5,35.57]
[1748025238962,3.90374227,2561.7,2561.5,35.57]
[1748025239163,3.90263539,2562.4,2561.7,0.7882]
[1748025239404,3.90350534,2561.8,2561.7,8.7882]
[1748025239710,3.90350534,2561.8,2561.7,36.3572]
[1748025239915,3.90350534,2561.8,2561.7,12.42392]
[1748025240137,3.90350534,2561.8,2561.7,35.569]
[1748025240408,3.90350534,2561.8,2561.7,8.0]
[1748025240779,3.90350534,2561.8,2561.7,23.871]
[1748025240975,3.90396252,2561.5,2561.4,17.6416]
[1748025241178,3.90396252,2561.5,2561.4,44.421]
[1748025241556,3.90396252,2561.5,2561.4,52.421]
[1748025241814,3.90396252,2561.5,2561.4,24.853]
[1748025242017,3.90396252,2561.5,2561.4,52.421]
[1748025242491,3.90563974,2560.4,2560.3,15.87]
[1748025242686,3.90563974,2560.4,2560.3,16.48847341]
[1748025242892,3.90563974,2560.4,2560.3,24.48847341]
[1748025243279,3.90563974,2560.4,2560.3,8.61847341]
[1748025243474,3.90563974,2560.4,2560.3,16.48847341]
[1748025243872,4.73173974,2560.4,2560.3,15.87]
[1748025245365,3.4399494,2560.4,2560.3,35.57]
[1748025245569,1.98262092,2562.3,2561.0,0.7817]
[1748025245801,3.90289594,2562.2,2561.1,55.47115544]
[1748025246109,3.90437293,2561.3,2561.2,10.818475]
[1748025246290,3.90437293,2561.3,2561.2,38.981475]
[1748025246805,3.90437293,2561.3,2561.2,10.818475]
[1748025246982,3.90437293,2561.3,2561.2,8.0]
[1748025247183,3.90437293,2561.3,2561.2,24.462]
[1748025247508,3.90437293,2561.3,2561.2,36.162]
[1748025248385,3.90363792,2561.8,2561.2,36.162]
[1748025248592,3.90350534,2561.8,2561.2,36.162]
[1748025248815,3.90411493,2561.4,2561.3,3.94999309]
[1748025249022,3.90426736,2561.3,2561.2,36.162]
[1748025249718,3.90426736,2561.3,2561.2,36.162]
[1748025251151,3.90426736,2561.3,2561.2,24.462]
[1748025251343,3.90426736,2561.3,2561.2,36.162]
[1748025253912,3.90426736,2561.3,2561.2,8.0]
[1748025254095,3.90426736,2561.3,2561.2,24.462]
[1748025254377,3.90426736,2561.3,2561.2,36.162]
[1748025255231,3.90426736,2561.3,2561.2,8.0]
[1748025255447,3.9044198,2561.2,2561.1,16.848]
[1748025255652,3.9044198,2561.2,2561.1,45.01]
[1748025256321,3.9044198,2561.2,2561.1,53.01]
[1748025256958,3.9044198,2561.2,2561.1,45.01]
[1748025257558,3.9044198,2561.2,2561.1,16.848]
[1748025257725,3.9044198,2561.2,2561.1,45.011]
[1748025259523,3.9044198,2561.2,2561.1,48.96099309]
[1748025261337,3.9044198,2561.2,2561.1,45.011]
[1748025261724,3.9044198,2561.2,2561.1,16.848]
[1748025262222,3.9044198,2561.2,2561.1,45.011]
[1748025264535,3.8785524,2561.2,2561.1,33.311]
[1748025265865,5.46193438,2561.2,2561.1,33.311]
[1748025266239,5.46193438,2561.2,2561.1,16.848]
[1748025266455,5.46193438,2561.2,2561.1,33.312]
[1748025266855,4.6836524,2561.2,2561.1,33.312]
[1748025269079,3.8785524,2561.2,2561.1,33.312]
[1748025270976,3.8785524,2561.2,2561.1,45.013]
[1748025272382,3.8785524,2561.2,2561.1,16.848]
[1748025272702,3.8785524,2561.2,2561.1,45.014]
[1748025273554,3.8785524,2561.2,2561.1,48.96399309]
[1748025274755,3.8785524,2561.2,2561.1,56.96399309]
[1748025275401,8.0,2562.4,2561.1,56.96399309]
[1748025275402,0.7725,2562.8,2561.8,0.7682]
[1748025275578,3.90231271,2562.6,2562.0,8.0]
[1748025275752,3.90274362,2562.3,2562.2,8.0]
[1748025277282,3.90274362,2562.3,2562.2,35.976]
[1748025278553,3.90274362,2562.3,2562.2,40.70979309]
[1748025279157,3.90274362,2562.3,2562.2,12.73379309]
[1748025279358,3.90274362,2562.3,2562.2,40.70979309]
[1748025279792,3.90274362,2562.3,2562.2,35.975]
[1748025279994,3.90274362,2562.3,2562.2,8.0]
[1748025280213,3.90274362,2562.3,2562.2,35.975]
[1748025286508,3.90274362,2562.3,2562.2,24.275]
[1748025286702,3.90274362,2562.3,2562.2,35.972]
[1748025286908,3.90274362,2562.3,2562.2,39.92199309]
[1748025287294,3.9024969,2562.5,2562.2,39.92199309]
[1748025287499,3.90274362,2562.3,2562.2,39.92199309]
[1748025288574,3.90274362,2562.3,2562.2,24.272]
[1748025288770,3.90274362,2562.3,2562.2,35.968]
[1748025291980,3.90274362,2562.3,2562.2,35.967]
[1748025299627,3.90274362,2562.3,2562.2,24.271]
[1748025299834,3.90274362,2562.3,2562.2,35.966]
[1748025302638,0.2,2562.8,2562.2,39.91599309]
[1748025302844,0.2,2562.8,2562.4,0.7767]
[1748025302998,3.90243902,2562.5,2562.4,0.7767]
[1748025303198,4.10211613,2562.8,2562.2,40.69269309]
[1748025303408,3.90267219,2562.4,2562.3,11.94999309]
[1748025303610,3.90245059,2562.5,2562.4,8.0]
[1748025303810,3.90248214,2562.5,2562.4,8.0]
[1748025304046,3.90237693,2562.6,2562.4,8.0]
[1748025304259,3.90243902,2562.5,2562.4,8.0]
[1748025304413,3.90259132,2562.4,2562.3,11.94999309]
[1748025304752,3.90289594,2562.2,2562.1,17.31619442]
[1748025304953,3.90289594,2562.2,2562.1,45.28119442]
[1748025305152,3.90289594,2562.2,2562.1,53.18838235]
[1748025305664,4.10212478,2562.8,2562.3,4.66771992]
[1748025305826,3.90224395,2562.7,2562.3,0.765]
[1748025306031,3.90230961,2562.6,2562.4,1.26678293]